[Event "Israel-ch Youth U8-18 2024"]
[Site "Kfar Saba"]
[Date "2024.04.21"]
[Round "7.11"]
[White "Sason, Noam"]
[Black "Vardi, Daniel"]
[Result "0-1"]
[ECO "B42"]
[WhiteElo "1903"]
[BlackElo "1937"]
[Annotator "TA"]
[PlyCount "56"]
[EventDate "2024.04.10"]
[EventType "swiss"]
[EventCountry "ISR"]
[SourceTitle "playchess.com"]
[Source "ChessBase"]
[SourceQuality "1"]
[TimeControl "5400+30"]

{[%evp 11,56,25,44,20,35,18,28,10,25,0,22,-33,0,-2,38,18,18,14,27,0,50,50,44,0,53,0,58,9,14,14,24,17,14,-64,-25,-291,-325,-1086,-1053,-1540,-1631,-1631,-1631,-29996,-29997,-29997,-29998]} 1. e4 {[%emt 0:00:03]} c5 {[%emt 0:00:00]} 2. Nf3 {[%emt 0:00:12]} e6 {[%emt 0:00:04]} 3. d4 {[%emt 0:00:14]} cxd4 {[%emt 0:00:02]} 4. Nxd4 {[%emt 0:00:12]} a6 {[%emt 0:00:03]} 5. Bd3 {[%emt 0:00:38]} Bc5 {[%emt 0:00:02]} 6. Nb3 {[%emt 0:00:28]} Ba7 {[%emt 0:00:01]} 7. Qf3 {[%emt 0:01:03]} Ne7 {[%emt 0:01:58]} 8. Be3 {[%emt 0:00:29] Hoping for Bxa7.} Nbc6 {[%emt 0:01:03]} 9. Nc3 {[%emt 0:02:25] White has an edge.} O-O {[%emt 0:02:31]} 10. O-O-O {[%emt 0:03:01]} (10. Bxa7 {simplifies} Rxa7 11. O-O d6 12. Qe3) 10... b5 {[%emt 0:02:06] [#]} 11. e5 {[%emt 0:05:18]} Qc7 {[%emt 0:05:53]} 12. Rhe1 {[%emt 0:08:21]} Bb7 {[%emt 0:03:40]} 13. Bxa7 {[%emt 0:03:11]} Rxa7 {[%emt 0:01:53]} 14. Qg3 {[%emt 0:06:22]} h6 {[%emt 0:09:49]} 15. Nc5 {[%emt 0:07:35][%cal Oc5d7]} Nd4 {[%emt 0:03:34]} (15... Nb4 $11 16. Nxd7 Rc8 (16... Qxd7 $2 17. Bh7+ Kxh7 18. Rxd7 $18) 17. Nf6+ Kh8) 16. Nxb7 $14 {[%emt 0:12:03]} Rxb7 {[%emt 0:01:04]} 17. Ne4 {[%emt 0:10:46]} Ndf5 {[%emt 0:03:15]} ({Black should play} 17... Rc8 $11) 18. Qf3 {[%emt 0:03:07]} (18. Qh3 $14) 18... Nd5 {[%emt 0:12:33]} (18... Ng6 $1 $11) 19. Qg4 {[%emt 0:15:16]} (19. Nf6+ $14 Nxf6 20. exf6) 19... Rc8 $11 {[%emt 0:07:49][%cal Og8f8]} (19... Qxe5 20. Ng3 Nf6 21. Qxf5 $14) 20. Nf6+ {[%emt 0:01:24]} Nxf6 {[%emt 0:00:24]} 21. exf6 {[%emt 0:00:01]} g6 {[%emt 0:00:28]} 22. Rd2 {[%emt 0:02:46]} (22. h4 $11) 22... Qa5 $1 $15 {[%emt 0:02:01]} ({And not} 22... Qxh2 23. g3 Rb6 24. Qf3 $16) 23. a3 {[%emt 0:03:43][%mdl 8192] [#] Loses the game.} (23. Rde2 $11) 23... b4 $1 $19 {[%emt 0:00:42]} 24. Bxf5 $2 {[%emt 0:04:31]} (24. a4 Qxa4 25. Kd1) 24... bxa3 $1 {[%emt 0:00:34]} (24... exf5 25. Qf3 bxa3 26. Qxa3 $11 (26. Qxb7 $2 {loses.} a2 $19)) 25. bxa3 {[%emt 0:01:28]} Qxa3+ {[%emt 0:00:23]} ({Not} 25... Qxf5 26. Qxf5 gxf5 27. Re3 $11) 26. Kd1 {[%emt 0:00:01]} exf5 {[%emt 0:00:08]} 27. Qh4 {[%emt 0:00:58]} Rb1+ {[%emt 0:00:05]} 28. Ke2 {[%emt 0:00:11]} Re8+ {[%emt 0:00:01] Weighted Error Value: White=0.99/Black=0.15 (very precise) .  Loses game:     	White=1     	---        Mistake:       	White=5     	Black=3      Inaccurate:     	White=3     	Black=2      OK:         	White=2     	Black=6      Best:        	---       	Black=1      Strong:       	---       	Black=3} 0-1

[Event "Israel-ch Youth U8-18 2024"]
[Site "Kfar Saba"]
[Date "2024.04.21"]
[Round "7.12"]
[White "Margolin-Herman, Ofek"]
[Black "Aranovski, Maximilian"]
[Result "0-1"]
[ECO "B07"]
[WhiteElo "1612"]
[BlackElo "1758"]
[Annotator "NA COMBH"]
[PlyCount "128"]
[EventDate "2024.04.10"]
[EventType "swiss"]
[EventCountry "ISR"]
[SourceTitle "playchess.com"]
[Source "ChessBase"]
[SourceQuality "1"]
[TimeControl "5400+30"]

1. e4 {[%emt 0:00:20]} d6 {[%emt 0:00:05]} 2. d4 {[%emt 0:00:27]} Nf6 {[%emt 0:00:07]} 3. Nc3 {[%emt 0:00:51]} g6 {[%emt 0:00:12]} 4. f3 {[%emt 0:00:45]} c6 {[%emt 0:00:48]} 5. Be3 {[%emt 0:00:26]} b5 {[%emt 0:00:20]} 6. Qd2 {[%emt 0:00:38]} Qa5 {[%emt 0:01:05]} 7. g4 {[%emt 0:13:56]} Nbd7 {[%emt 0:01:43]} 8. h4 {[%emt 0:04:10]} Nb6 {[%emt 0:01:26]} 9. a3 {[%emt 0:08:00]} Nc4 {[%emt 0:03:39]} 10. Bxc4 {[%emt 0:00:32]} bxc4 {[%emt 0:00:06]} 11. Na2 {[%emt 0:11:37]} Qc7 {[%emt 0:09:23]} 12. Ne2 {[%emt 0:03:52]} Bg7 {[%emt 0:06:53]} 13. h5 {[%emt 0:01:56]} Nd7 {[%emt 0:12:46]} 14. h6 {[%emt 0:00:42]} Bf8 {[%emt 0:00:55]} 15. Qc3 {[%emt 0:09:51]} d5 {[%emt 0:04:39]} 16. e5 {[%emt 0:05:12]} e6 {[%emt 0:04:25]} 17. Rf1 {[%emt 0:03:21]} c5 {[%emt 0:01:17]} 18. g5 {[%emt 0:10:49]} cxd4 {[%emt 0:11:18]} 19. Bxd4 {[%emt 0:00:02]} Be7 {[%emt 0:00:49]} 20. Qe3 {[%emt 0:02:06]} Ba6 {[%emt 0:06:27]} 21. Nac3 {[%emt 0:03:18]} Rb8 {[%emt 0:05:05]} 22. Rb1 {[%emt 0:04:29]} Rb7 {[%emt 0:01:06]} 23. f4 {[%emt 0:01:34]} Qb8 {[%emt 0:01:19]} 24. Nxd5 {[%emt 0:06:27]} exd5 {[%emt 0:04:37]} 25. e6 {[%emt 0:00:54]} Rg8 {[%emt 0:02:22]} 26. exd7+ {[%emt 0:00:01]} Kxd7 {[%emt 0:03:25]} 27. Qh3+ {[%emt 0:00:37]} Kd8 {[%emt 0:00:40]} 28. Qf3 {[%emt 0:01:44]} Rd7 {[%emt 0:01:27]} 29. Kf2 {[%emt 0:00:53]} Re8 {[%emt 0:04:00]} 30. Nc3 {[%emt 0:00:13]} Bb7 {[%emt 0:00:12]} 31. Rfe1 {[%emt 0:00:15]} Bd6 {[%emt 0:04:47]} 32. Rxe8+ {[%emt 0:00:13]} Kxe8 {[%emt 0:00:07]} 33. Re1+ {[%emt 0:00:24]} Re7 {[%emt 0:01:49]} 34. Rxe7+ {[%emt 0:00:27]} Kxe7 {[%emt 0:01:16]} 35. Qe3+ {[%emt 0:00:18]} Kd7 {[%emt 0:00:30]} 36. Bxa7 {[%emt 0:01:01]} Qc7 {[%emt 0:00:57]} 37. Bb6 {[%emt 0:01:08]} Qb8 {[%emt 0:00:41]} 38. Ne2 {[%emt 0:00:32]} Bc7 {[%emt 0:01:41]} 39. Bd4 {[%emt 0:01:57]} Bd6 {[%emt 0:01:48]} 40. Kg3 {[%emt 0:01:17]} Kc7 {[%emt 0:01:04]} 41. Ba7 {[%emt 0:00:52]} Qc8 {[%emt 0:00:34]} 42. Bb6+ {[%emt 0:00:29]} Kb8 {[%emt 0:00:29]} 43. Nc3 {[%emt 0:00:49]} Qf5 {[%emt 0:00:51]} 44. Bd8 {[%emt 0:02:08]} Qxc2 {[%emt 0:00:53]} 45. Bf6 {[%emt 0:00:54]} Qd3 {[%emt 0:02:19]} 46. Bd4 {[%emt 0:00:28]} Qxe3+ {[%emt 0:00:08]} 47. Bxe3 {[%emt 0:00:11]} Kc7 {[%emt 0:00:19]} 48. Nb5+ {[%emt 0:00:19]} Kd7 {[%emt 0:00:13]} 49. a4 {[%emt 0:00:43]} Bb4 {[%emt 0:00:40]} 50. f5 {[%emt 0:00:44]} Ba6 {[%emt 0:00:28]} 51. Nd4 {[%emt 0:00:22]} Bb7 {[%emt 0:00:36]} 52. f6 {[%emt 0:00:09]} Bc6 {[%emt 0:00:13]} 53. Nxc6 {[%emt 0:01:01]} Kxc6 {[%emt 0:00:05]} 54. Kf4 {[%emt 0:00:17]} Bd6+ {[%emt 0:00:25]} 55. Kf3 {[%emt 0:00:14]} Be5 {[%emt 0:00:23]} 56. Bc1 {[%emt 0:00:16]} Kb6 {[%emt 0:00:15]} 57. Ke2 {[%emt 0:00:38]} Ka5 {[%emt 0:00:06]} 58. Kd1 {[%emt 0:00:06]} Kxa4 {[%emt 0:00:04]} 59. Kc2 {[%emt 0:00:07]} d4 {[%emt 0:00:23]} 60. Bd2 {[%emt 0:00:59]} d3+ {[%emt 0:00:32]} 61. Kb1 {[%emt 0:00:19]} Kb3 {[%emt 0:00:26]} 62. Bc1 {[%emt 0:01:31]} Bd4 {[%emt 0:00:11]} 63. Bf4 {[%emt 0:00:35]} Bxb2 {[%emt 0:00:31]} 64. Bd2 {[%emt 0:00:22]} c3 {[%emt 0:00:27]} 0-1

[Event "Israel-ch Youth U8-18 2024"]
[Site "Kfar Saba"]
[Date "2024.04.21"]
[Round "7.13"]
[White "Ronin, Ilan"]
[Black "Blekh, Erik"]
[Result "0-1"]
[ECO "B22"]
[WhiteElo "1555"]
[BlackElo "1696"]
[Annotator "NA RC COMBH"]
[PlyCount "50"]
[EventDate "2024.04.10"]
[EventType "swiss"]
[EventCountry "ISR"]
[SourceTitle "playchess.com"]
[Source "ChessBase"]
[SourceQuality "1"]
[TimeControl "5400+30"]

1. e4 {[%emt 0:00:16]} c5 {[%emt 0:00:13]} 2. c3 {[%emt 0:00:12]} Nf6 {[%emt 0:00:15]} 3. e5 {[%emt 0:00:47]} Nd5 {[%emt 0:00:14]} 4. d4 {[%emt 0:00:26]} cxd4 {[%emt 0:00:19]} 5. cxd4 {[%emt 0:00:17]} d6 {[%emt 0:01:01]} 6. Nf3 {[%emt 0:00:28]} Nc6 {[%emt 0:00:26]} 7. Bc4 {[%emt 0:00:50]} Nb6 {[%emt 0:00:50]} 8. Bb5 {[%emt 0:00:44]} dxe5 {[%emt 0:00:48]} 9. Nxe5 {[%emt 0:00:54]} Bd7 {[%emt 0:00:32]} 10. Nxd7 {[%emt 0:00:45]} Qxd7 {[%emt 0:00:22]} 11. Nc3 {[%emt 0:01:32]} e6 {[%emt 0:00:58]} 12. O-O {[%emt 0:00:58]} Rd8 {[%emt 0:02:18]} 13. Bg5 {[%emt 0:02:18]} Be7 {[%emt 0:03:34]} 14. Bxe7 {[%emt 0:01:22]} Qxe7 {[%emt 0:00:16]} 15. Qf3 {[%emt 0:02:19]} Nd5 {[%emt 0:18:05]} 16. Rac1 {[%emt 0:05:16]} O-O {[%emt 0:06:34]} 17. Nxd5 {[%emt 0:02:34]} Rxd5 {[%emt 0:01:43]} 18. Bxc6 {[%emt 0:01:24]} bxc6 {[%emt 0:00:12]} 19. Rxc6 {[%emt 0:00:12]} Rxd4 {[%emt 0:01:51]} 20. h3 {[%emt 0:00:43]} Rfd8 {[%emt 0:08:10]} 21. Rfc1 {[%emt 0:03:07]} R4d7 {[%emt 0:18:46]} 22. Rc8 {[%emt 0:03:33]} Qb4 {[%emt 0:14:38]} 23. Rxd8+ {[%emt 0:04:51]} Rxd8 {[%emt 0:00:10]} 24. Qc3 {[%emt 0:00:41]} Qf4 {[%emt 0:04:58]} 25. Qc7 {[%emt 0:01:16]} Rd1+ {[%emt 0:01:20]} 0-1

[Event "Israel-ch Youth U8-18 2024"]
[Site "Kfar Saba"]
[Date "2024.04.21"]
[Round "7.14"]
[White "Cohen, Israel"]
[Black "Roth, Elai"]
[Result "1/2-1/2"]
[ECO "D10"]
[WhiteElo "1763"]
[BlackElo "1537"]
[Annotator "NA COMBH"]
[PlyCount "113"]
[EventDate "2024.04.10"]
[EventType "swiss"]
[EventCountry "ISR"]
[SourceTitle "playchess.com"]
[Source "ChessBase"]
[SourceQuality "1"]
[TimeControl "5400+30"]

1. d4 {[%emt 0:00:03]} d5 {[%emt 0:00:02]} 2. c4 {[%emt 0:00:16]} c6 {[%emt 0:00:04]} 3. cxd5 {[%emt 0:00:19]} cxd5 {[%emt 0:00:07]} 4. Nc3 {[%emt 0:00:16]} Nf6 {[%emt 0:00:13]} 5. Bf4 {[%emt 0:00:44]} Nc6 {[%emt 0:00:30]} 6. e3 {[%emt 0:00:40]} a6 {[%emt 0:00:36]} 7. Bd3 {[%emt 0:00:26]} Bg4 {[%emt 0:00:35]} 8. f3 {[%emt 0:02:01]} Bh5 {[%emt 0:00:52]} 9. Nge2 {[%emt 0:01:06]} e6 {[%emt 0:01:53]} 10. Bg3 {[%emt 0:03:21]} Bg6 {[%emt 0:04:41]} 11. Nf4 {[%emt 0:01:05]} Bxd3 {[%emt 0:00:40]} 12. Nxd3 {[%emt 0:00:19]} Bd6 {[%emt 0:05:38]} 13. Bxd6 {[%emt 0:04:41]} Qxd6 {[%emt 0:00:47]} 14. O-O {[%emt 0:04:20]} O-O {[%emt 0:06:45]} 15. f4 {[%emt 0:23:25]} Nd7 {[%emt 0:08:22]} 16. Rf3 {[%emt 0:03:32]} f6 {[%emt 0:04:22]} 17. Rh3 {[%emt 0:03:46]} f5 {[%emt 0:10:52]} 18. Qh5 {[%emt 0:02:23]} Nf6 {[%emt 0:00:55]} 19. Qh4 {[%emt 0:00:29]} h6 {[%emt 0:11:55]} 20. Rf1 {[%emt 0:04:38]} Ne4 {[%emt 0:03:52]} 21. Rff3 {[%emt 0:05:55]} Qe7 {[%emt 0:02:12]} 22. Qe1 {[%emt 0:05:40]} Rf6 {[%emt 0:04:50]} 23. a3 {[%emt 0:18:22]} Rc8 {[%emt 0:04:33]} 24. Nf2 {[%emt 0:06:07]} Nxc3 {[%emt 0:01:39]} 25. Qxc3 {[%emt 0:00:39]} Qd7 {[%emt 0:01:17]} 26. Nd3 {[%emt 0:00:50]} Na7 {[%emt 0:02:43]} 27. Qe1 {[%emt 0:01:00]} Rc2 {[%emt 0:02:30]} 28. Rf2 {[%emt 0:03:01]} Qc8 {[%emt 0:02:09]} 29. Rhf3 {[%emt 0:01:29]} Qc4 {[%emt 0:01:59]} 30. Qd1 {[%emt 0:00:49]} Rxf2 {[%emt 0:01:06]} 31. Rxf2 {[%emt 0:00:09]} Kh7 {[%emt 0:02:18]} 32. Rc2 {[%emt 0:01:09]} Qb3 {[%emt 0:00:36]} 33. Qd2 {[%emt 0:00:54]} b6 {[%emt 0:02:10]} 34. Rc7 {[%emt 0:00:35]} Nb5 {[%emt 0:00:33]} 35. Nc1 {[%emt 0:00:54]} Qa4 {[%emt 0:00:53]} 36. Rb7 {[%emt 0:00:50]} Nd6 {[%emt 0:05:15]} 37. Rxb6 {[%emt 0:00:26]} Ne4 {[%emt 0:00:39]} 38. Qd3 {[%emt 0:00:56]} a5 {[%emt 0:00:59]} 39. Nb3 {[%emt 0:00:57]} Qd7 {[%emt 0:02:18]} 40. Nxa5 {[%emt 0:00:29]} Qc7 {[%emt 0:00:27]} 41. Rc6 {[%emt 0:00:44]} Qxa5 {[%emt 0:00:13]} 42. Rc1 {[%emt 0:00:11]} Rf7 {[%emt 0:01:07]} 43. b4 {[%emt 0:00:14]} Rc7 {[%emt 0:00:59]} 44. Rb1 {[%emt 0:01:27]} Qa4 {[%emt 0:00:57]} 45. g3 {[%emt 0:00:47]} Rc3 {[%emt 0:00:12]} 46. Qe2 {[%emt 0:00:05]} Qxa3 {[%emt 0:00:31]} 47. Qb2 {[%emt 0:00:41]} Rxe3 {[%emt 0:00:54]} 48. b5 {[%emt 0:00:10]} Qxb2 {[%emt 0:01:21]} 49. Rxb2 {[%emt 0:00:07]} Nd6 {[%emt 0:00:20]} 50. b6 {[%emt 0:00:15]} Nb7 {[%emt 0:00:08]} 51. Rc2 {[%emt 0:00:04]} Kg6 {[%emt 0:01:12]} 52. Rc7 {[%emt 0:00:07]} Na5 {[%emt 0:00:20]} 53. Ra7 {[%emt 0:00:17]} Nc6 {[%emt 0:00:45]} 54. Rc7 {[%emt 0:00:09]} Na5 {[%emt 0:00:21]} 55. Ra7 {[%emt 0:00:05]} Nc6 {[%emt 0:00:06]} 56. Rc7 {[%emt 0:00:11]} Na5 {[%emt 0:00:08]} 57. Ra7 {[%emt 0:00:05]} 1/2-1/2

[Event "Israel-ch Youth U8-18 2024"]
[Site "Kfar Saba"]
[Date "2024.04.21"]
[Round "7.15"]
[White "Hochman, Gur"]
[Black "Eshkol, Idan"]
[Result "1-0"]
[ECO "C29"]
[WhiteElo "1629"]
[BlackElo "1518"]
[Annotator "NA RC COMBH"]
[PlyCount "121"]
[EventDate "2024.04.10"]
[EventType "swiss"]
[EventCountry "ISR"]
[SourceTitle "playchess.com"]
[Source "ChessBase"]
[SourceQuality "1"]
[TimeControl "5400+30"]

1. e4 {[%emt 0:00:04]} e5 {[%emt 0:00:08]} 2. Nc3 {[%emt 0:00:12]} Nf6 {[%emt 0:02:15]} 3. f4 {[%emt 0:00:08]} d5 {[%emt 0:06:33]} 4. fxe5 {[%emt 0:00:12]} Nxe4 {[%emt 0:00:12]} 5. Qf3 {[%emt 0:00:10]} Nxc3 {[%emt 0:09:54]} 6. dxc3 {[%emt 0:00:11]} Bc5 {[%emt 0:00:57]} 7. Be3 {[%emt 0:01:24]} Bxe3 {[%emt 0:01:49]} 8. Qxe3 {[%emt 0:00:07]} Qh4+ {[%emt 0:03:18]} 9. g3 {[%emt 0:00:15]} Qa4 {[%emt 0:00:24]} 10. Bd3 {[%emt 0:05:09]} Be6 {[%emt 0:08:45]} 11. Qc5 {[%emt 0:06:52]} c6 {[%emt 0:02:50]} 12. Ne2 {[%emt 0:06:23]} Nd7 {[%emt 0:00:43]} 13. Qe3 {[%emt 0:06:53]} O-O-O {[%emt 0:10:23]} 14. Nd4 {[%emt 0:04:24]} Rde8 {[%emt 0:00:25]} 15. Nf5 {[%emt 0:01:51]} Bxf5 {[%emt 0:02:06]} 16. Bxf5 {[%emt 0:00:07]} g6 {[%emt 0:00:46]} 17. Bxd7+ {[%emt 0:00:44]} Kxd7 {[%emt 0:00:07]} 18. O-O {[%emt 0:01:50]} Rhf8 {[%emt 0:00:25]} 19. b3 {[%emt 0:04:36]} Qe4 {[%emt 0:03:24]} 20. Qxa7 {[%emt 0:01:38]} Kc7 {[%emt 0:00:10]} 21. Qf2 {[%emt 0:05:48]} Re7 {[%emt 0:14:14]} 22. Rae1 {[%emt 0:03:07]} Qg4 {[%emt 0:00:15]} 23. Qf4 {[%emt 0:08:49]} Qxf4 {[%emt 0:06:18]} 24. gxf4 {[%emt 0:00:12]} Rfe8 {[%emt 0:03:52]} 25. Kg2 {[%emt 0:01:49]} Kd7 {[%emt 0:01:09]} 26. Rd1 {[%emt 0:01:34]} Ke6 {[%emt 0:03:07]} 27. Kf3 {[%emt 0:03:50]} Kf5 {[%emt 0:01:17]} 28. h4 {[%emt 0:05:08]} f6 {[%emt 0:01:18]} 29. Rde1 {[%emt 0:01:12]} g5 {[%emt 0:03:21]} 30. exf6 {[%emt 0:01:41]} Rxe1 {[%emt 0:00:23]} 31. Rxe1 {[%emt 0:00:13]} g4+ {[%emt 0:02:00]} 32. Kg3 {[%emt 0:00:20]} Rf8 {[%emt 0:06:54]} 33. Re7 {[%emt 0:02:10]} b6 {[%emt 0:02:34]} 34. Rxh7 {[%emt 0:02:11]} Rxf6 {[%emt 0:00:49]} 35. Rh5+ {[%emt 0:00:49]} Kg6 {[%emt 0:00:31]} 36. Rg5+ {[%emt 0:00:41]} Kf7 {[%emt 0:00:25]} 37. Kxg4 {[%emt 0:00:16]} Re6 {[%emt 0:00:10]} 38. Rf5+ {[%emt 0:01:39]} Kg7 {[%emt 0:00:13]} 39. Re5 {[%emt 0:00:18]} Rd6 {[%emt 0:00:19]} 40. h5 {[%emt 0:01:01]} d4 {[%emt 0:00:28]} 41. cxd4 {[%emt 0:00:17]} Rxd4 {[%emt 0:00:09]} 42. Re6 {[%emt 0:00:22]} c5 {[%emt 0:00:14]} 43. Rxb6 {[%emt 0:01:04]} Rd2 {[%emt 0:00:06]} 44. c4 {[%emt 0:00:52]} Rxa2 {[%emt 0:00:19]} 45. b4 {[%emt 0:00:34]} cxb4 {[%emt 0:00:22]} 46. Rxb4 {[%emt 0:00:25]} Rc2 {[%emt 0:00:20]} 47. Rb7+ {[%emt 0:00:46]} Kh6 {[%emt 0:07:19]} 48. Rc7 {[%emt 0:01:00]} Rd2 {[%emt 0:00:00]} 49. c5 {[%emt 0:00:36]} Rd7 {[%emt 0:00:00]} 50. Rc6+ {[%emt 0:00:38]} Kg7 {[%emt 0:00:00]} 51. Kg5 {[%emt 0:00:38]} Ra7 {[%emt 0:00:00]} 52. Rb6 {[%emt 0:04:01]} Rd7 {[%emt 0:00:00]} 53. c6 {[%emt 0:00:25]} Rd5+ {[%emt 0:00:00]} 54. f5 {[%emt 0:00:14]} Rd8 {[%emt 0:00:00]} 55. Rb7+ {[%emt 0:00:25]} Kg8 {[%emt 0:00:00]} 56. c7 {[%emt 0:00:12]} Rc8 {[%emt 0:00:00]} 57. Rb8 {[%emt 0:00:08]} Rxb8 {[%emt 0:00:00]} 58. cxb8=Q+ {[%emt 0:20:55]} Kh7 {[%emt 0:00:00]} 59. Qb7+ {[%emt 0:00:00]} Kg8 {[%emt 0:00:00]} 60. Kg6 {[%emt 0:00:00]} Kh8 {[%emt 0:00:00]} 61. Qh7# {[%emt 0:00:00]} 1-0